Cogmind - Beta 15 @@@ ROGUE MODE // 2025.05.15 @ 01:55:48 Player: Skysub Result: Self-destructed Performance ------------- Evolutions (2) 1000 Regions Visited (4) 800 Robots Destroyed (41) 205 Value Destroyed (1311) 1311 Prototype IDs (14) 280 Alien Tech Used (0) 0 Bonus (0) 0 TOTAL SCORE: 3596 Bonus ------- None Cogmind --------- Core Integrity 428/550 Matter 99/300 Energy 0/100 System Corruption 4% Temperature Cool (0) Movement Core (150) Ox2 Location -8/Materials Parts ------- > --- POWER (1) -------- (None) > --- PROPULSION (3) --- Aerolev Unit Aerolev Unit Aerolev Unit > --- UTILITY (5) ------ Large Storage Unit Weight Redist. System Signal Interpreter Advanced Targeting Computer > --- WEAPON (2) ------- Grenade Launcher Makeshift Axe > --- INVENTORY (15) --- Light Nuclear Core Subdweller Monowheel Airjet Advanced Visual Processing Unit Improved Sensor Array Improved Signal Interpreter Improved Terrain Scanner System Shield Subdweller Laser Subdweller Laser Heavy Particle Gun Powered Cannon Subdweller Shrapnel Launcher Plasma Cutter Peak State ------------ > --- POWER ------------ Light Ion Engine > --- PROPULSION ------- Aerolev Unit Aerolev Unit Aerolev Unit > --- UTILITY ---------- Large Storage Unit Subdweller Optics Improved Terrain Scanner Light Armor Plating Tractor Beam > --- WEAPON ----------- Heavy Particle Gun Makeshift Axe > --- INVENTORY -------- Subdweller Monowheel Aerolev Unit Weight Redist. System Subdweller Optics Advanced Visual Processing Unit Subdweller Laser Subdweller Laser Powered Cannon Battle Rifle Battle Rifle Subdweller Machine Gun Grenade Launcher Subdweller Shrapnel Launcher Plasma Cutter [Rating: 33] Favorites ----------- Power Light Nuclear Core Engine Light Ion Engine Power Core Light Nuclear Core Propulsion Light Treads Treads Light Treads Leg Aluminum Leg Wheel Subdweller Monowheel Hover Unit Aerolev Unit Utility Large Storage Unit Device Improved Terrain Scanner Storage Large Storage Unit Processor Signal Interpreter Protection Light Armor Plating Weapon Assault Rifle Energy Gun Medium Laser Ballistic Gun Assault Rifle Launcher Grenade Launcher Special Weapon Mining Laser Slashing Weapon Makeshift Axe Build | -11 -10 -10 -10 -8 ------- Run | Yrd Mat Min Sub Mat Slots Evolved 4 | . . . . 4 Power . | . . . . . Propulsion 1 | . . . . 1 Utility 3 | . . . . 3 Weapon . | . . . . . Parts Attached 43 | 7 4 3 8 21 Power 4 | 1 1 . . 2 Engine 2 | 1 . . . 1 Core 2 | . 1 . . 1 Reactor . | . . . . . Propulsion 12 | 2 . 1 1 8 Treads 5 | 2 . 1 1 1 Leg 1 | . . . . 1 Wheel 1 | . . . . 1 Hover 5 | . . . . 5 Flight . | . . . . . Utility 12 | 2 1 2 2 5 Device 5 | 1 . . 2 2 Storage 3 | 1 1 1 . . Processor 3 | . . 1 . 2 Hackware . | . . . . . Protection 1 | . . . . 1 Artifact . | . . . . . Weapon 15 | 2 2 . 5 6 Energy Gun 5 | . 1 . . 4 Energy Cannon . | . . . . . Ballistic Gun 6 | 2 . . 2 2 Ballistic Cannon . | . . . . . Launcher 1 | . . . 1 . Special Weapon 1 | . 1 . . . Impact Weapon . | . . . . . Slashing Weapon 2 | . . . 2 . Piercing Weapon . | . . . . . Special Melee Weapon . | . . . . . Unidentified Prototypes 3 | . . . . 3 Parts Lost 15 | . . 1 4 10 Power 2 | . . . 1 1 Propulsion 5 | . . 1 1 3 Utility 4 | . . . . 4 Weapon 4 | . . . 2 2 Highest Loss Streak 7 | . . 1 2 7 To Critical Strikes . | . . . . . Average Backups 10 | 5 7 10 12 13 Power . | . 1 1 1 . Propulsion 3 | 3 3 3 3 1 Utility 2 | . . 1 2 3 Weapon 3 | 1 2 2 4 6 Tool/Special . | . . . . . Unused Backups 12 | . 1 . 2 9 Power . | . . . . . Propulsion 3 | . 1 . 2 . Utility 5 | . . . . 5 Weapon 3 | . . . . 3 Tool/Special 1 | . . . . 1 Average Slot Usage (%) 97 | . 100 99 98 92 Engine 3 | . 6 . . 7 Core 8 | . 7 14 13 . Treads 21 | . 28 27 28 5 Hover 4 | . . . . 16 Device 14 | . 14 10 9 23 Storage 12 | . 14 14 14 9 Processor 2 | . . 3 4 . Protection 1 | . . . . 6 Energy Gun 8 | . 10 14 . 6 Ballistic Gun 11 | . 14 14 13 4 Launcher 1 | . . . 6 . Slashing Weapon 3 | . . . 7 6 Peak Build Rating 33 | 9 11 12 18 33 Average Rating 15 | 5 10 11 14 27 On Entrance 8 | . 9 11 10 14 Naked Turns . | . . . . . Heaviest Build 36 | 12 15 30 32 36 Greatest Support 40 | 40 40 40 40 40 Greatest Overweight (x) 4 | 3 . 1 1 4 Average Overweight (x) . | . . . . . Largest Inventory Capacity 20 | 8 20 15 15 15 Average Capacity 13 | 7 8 14 15 15 Most Carried 15 | 7 8 11 15 15 Average Carried 10 | 5 7 10 12 14 Final Capacity 15 | 8 8 15 15 15 Final Carried 15 | 7 8 10 15 15 Class Distribution -------------------- 78% | Mutant 15% | Derelict-Mutant 5% | Scavenger-Mutant Dominant Class ---------------- Mutant | -10/Materials Mutant | -10/Mines Derelict-Mutant | -10/Subcaves Mutant | -8/Materials Resources | -11 -10 -10 -10 -8 ----------- Run | Yrd Mat Min Sub Mat Matter Collected 1041 | 249 160 59 181 392 Remotely 275 | . . . . 275 Salvage Created 1408 | 54 289 79 92 894 Parts 83 | 5 22 4 7 45 Haulers Intercepted 4 | . . . . 4 Recyclers Shooed 1 | . . . . 1 Parts Field Recycled . | . . . . . Retrieved Matter . | . . . . . Parts Self-Destructed 12 | . . . 12 . Prevented . | . . . . . Kills | -11 -10 -10 -10 -8 ------- Run | Yrd Mat Min Sub Mat Combat Hostiles Destroyed 30 | . 9 2 6 13 Melee 2 | . . . . 2 Guns 17 | . 9 2 . 6 AOE 11 | . . . 6 5 Classes Destroyed 11 | 1 2 . 2 6 Worker 1 | . . . . 1 Tunneler 2 | 2 . . . . Hauler 4 | . . . . 4 Recycler 1 | . . . . 1 Mechanic 1 | . . . . 1 Watcher 2 | . . . . 2 Swarmer 3 | . 3 . . . Grunt 20 | . 6 2 2 10 Sentry 3 | . . . 1 2 Hunter 1 | . . . . 1 Subdweller 3 | . . . 3 . Best Kill Streak 8 | 1 4 2 3 8 Combat Bots Only 7 | . 4 2 3 7 Max Kills in Single Turn 1 | 1 1 1 1 1 Gunslinging . | . . . . . Exploded 1 | . . . 1 1 Melee 1 | . . . . 1 Uniques/NPCs Destroyed . | . . . . . Combat | -11 -10 -10 -10 -8 -------- Run | Yrd Mat Min Sub Mat Hostile Shots Fired 159 | . 32 15 27 85 Missed 37 | . 6 4 6 21 Hits 122 | . 26 11 21 64 Projectile 122 | . 26 11 21 64 Critical Strikes 3 | . . . 1 2 Damage Taken 1901 | . 331 162 386 1022 Core 257 | . 36 57 42 122 Absorbed by Shields . | . . . . . Core Remaining (%) 73 | 100 . . 46 . Volleys Fired 92 | 5 22 9 11 45 Largest 2 | 2 2 2 2 2 Hottest 100 | 40 100 70 80 80 Shots Fired 158 | 10 41 18 19 70 Gun 135 | 10 40 18 8 59 Cannon . | . . . . . Launcher 22 | . . . 11 11 Special 1 | . 1 . . . Kinetic 94 | 10 21 9 7 47 Thermal 42 | . 20 9 1 12 Explosive 22 | . . . 11 11 Electromagnetic . | . . . . . Robot Hit Streak 22 | 9 22 5 6 13 Robot Miss Streak 4 | 1 2 2 1 4 Penetration Max . | . . . . . Secondary Targets 1 | . . . . 1 Max Gunslinging Chain 1 | . . . . 1 Shots Hit Robots 127 | 9 31 12 15 60 Core Hits 73 | 4 16 5 9 39 Critical Kills . | . . . . . Critical Parts Destroyed 1 | . . 1 . . Critical Strikes 5 | . 4 1 . . Burn 4 | . 4 . . . Destroy 1 | . . 1 . . Melee Attacks 21 | . . . 3 18 Impact . | . . . . . Slashing 21 | . . . 3 18 Piercing . | . . . . . Sneak Attacks 3 | . . . . 3 Combat Hostiles . | . . . . . Follow-up Attacks . | . . . . . Damage Inflicted 2949 | 99 385 150 608 1707 Guns 1343 | 93 379 144 51 676 Cannons . | . . . . . Explosions 1070 | . . . 557 513 Melee 518 | . . . . 518 Ramming 18 | 6 6 6 . . Kinetic 902 | 93 179 59 51 520 Thermal 441 | . 200 85 . 156 Explosive 1070 | . . . 557 513 Electromagnetic . | . . . . . Impact . | . . . . . Slashing 518 | . . . . 518 Piercing . | . . . . . Highest Corruption 4 | . . . . 4 Average Corruption 4 | . . . . 4 Corruption Purged . | . . . . . Corruption Blocked . | . . . . . Effects 12 | . . . . 12 Message Errors 3 | . . . . 3 Matter Fused 6 | . . . . 6 Energy Discharges 1 | . . . . 1 Misfires 2 | . . . . 2 Overload Shots . | . . . . . Overflow Damage 96 | . . . . 96 Projectiles . | . . . . . Explosions . | . . . . . Melee 96 | . . . . 96 Knockbacks . | . . . . . Impact . | . . . . . Kinetic . | . . . . . Secondary . | . . . . . Self-Inflicted Damage 42 | . . . . 42 Shots 4 | . . . . 4 Rammed 5 | 2 2 1 . . Targets Rammed 5 | 2 2 1 . . Kicked . | . . . . . Crushed . | . . . . . Highest Temperature 228 | . 111 228 21 144 Average Temperature 60 | . 41 116 11 53 Received Heat Transfer 774 | . 114 93 117 450 Siege Activations . | . . . . . Martial Activations . | . . . . . Shielding Activations . | . . . . . Robots Disrupted . | . . . . . Combat Hostiles . | . . . . . Robots Corrupted . | . . . . . Combat Hostiles . | . . . . . Parts Fried . | . . . . . Impact Corruptions . | . . . . . Robots Melted . | . . . . . Combat Hostiles . | . . . . . Parts Melted . | . . . . . Heat Transferred 1443 | . 888 259 . 296 Parts Sabotaged . | . . . . . Parts Stolen . | . . . . . Parts Stripped . | . . . . . Power Chain Reactions . | . . . . . Alert | -11 -10 -10 -10 -8 ------- Run | Yrd Mat Min Sub Mat Maximum Alert Level . | . . . . . Low Security (%) 100 | 100 100 100 . 100 Level 1 . | . . . . . Level 2 . | . . . . . Level 3 . | . . . . . Level 4 . | . . . . . Level 5 . | . . . . . High Security . | . . . . . Max Security . | . . . . . Peak Influence 176 | 5 176 42 . 170 Initial 30 | . . 30 . . Average 32 | . 77 4 . 31 Influence Increases 944 | 10 343 50 60 481 Destroy 0b10 Robot/C 540 | . 180 40 60 260 Destroy 0b10 Robot/NC 55 | 10 . . . 45 Destroy Leader 142 | . 60 10 . 72 Successful Hack 17 | . 12 . . 5 Select Force Hacks 60 | . 60 . . . Disable Machine 60 | . 15 . . 45 Destroy Structure 55 | . 1 . . 54 Lose Combat Pursuer 15 | . 15 . . . Influence Decreases 762 | 10 264 129 60 299 Entered New Map 49 | . . 49 . . Time Decay 632 | 10 264 80 50 228 Lost Part 81 | . . . 10 71 Squads Dispatched 8 | . 5 . . 3 Investigation 3 | . 3 . . . Extermination . | . . . . . Reinforcement 5 | . 2 . . 3 Assault . | . . . . . Garrison . | . . . . . Intercept . | . . . . . Searches Triggered . | . . . . . Construction Impeded 1 | . . . . 1 Haulers Reinforced . | . . . . . Active Scanning Responses . | . . . . . Cargo Convoy Interrupts . | . . . . . Stealth | -11 -10 -10 -10 -8 --------- Run | Yrd Mat Min Sub Mat Distress Signals . | . . . . . Communications Jammed . | . . . . . Distress Signals . | . . . . . Times Spotted 43 | . 16 2 7 18 Peak Tracking Total 6 | . 4 2 3 6 Tactical Retreats 1 | . 1 . . . Traps | -11 -10 -10 -10 -8 ------- Run | Yrd Mat Min Sub Mat Traps Triggered 5 | . 4 . . 1 Indirectly . | . . . . . Trap Hack Attempts . | . . . . . Triggered . | . . . . . Disarmed . | . . . . . Reprogrammed . | . . . . . Reused . | . . . . . Traps Extracted . | . . . . . Installed . | . . . . . Triggered . | . . . . . Machines | -11 -10 -10 -10 -8 ---------- Run | Yrd Mat Min Sub Mat Machines Disabled 5 | . 1 . 1 3 Max in Single Turn 1 | . 1 . 1 1 Machines Repaired . | . . . . . Machines Dismantled . | . . . . . Machines Sabotaged . | . . . . . Overloaded Fab Kills . | . . . . . Hacking | -11 -10 -10 -10 -8 --------- Run | Yrd Mat Min Sub Mat Machines Accessed 9 | . 6 1 1 1 Terminals 6 | . 4 1 . 1 Fabricators . | . . . . . Repair Stations . | . . . . . Recycling Units 2 | . 2 . . . Scanalyzers . | . . . . . Garrison Access . | . . . . . Total Hacks 22 | . 16 3 1 2 Successful 11 | . 9 . 1 1 Failed 11 | . 7 3 . 1 Catastrophic 1 | . 1 . . . Database Lockouts . | . . . . . Manual 16 | . 11 3 . 2 Terminals 14 | . 9 3 . 2 Fabricators . | . . . . . Repair Stations . | . . . . . Recycling Units 7 | . 7 . . . Scanalyzers . | . . . . . Garrison Access . | . . . . . Terminal Hacks 2 | . 1 . 1 . Branch Access Points 1 | . 1 . . . Proto ID Catalog 1 | . . . 1 . Fabricator Hacks . | . . . . . Repair Station Hacks . | . . . . . Recycling Unit Hacks 3 | . 3 . . . Report Inventory 2 | . 2 . . . Retrieve Components 1 | . 1 . . . Scanalyzer . | . . . . . Garrison Access Hacks . | . . . . . Unauthorized Hacks 6 | . 5 . . 1 Terminals 4 | . 3 . . 1 Botnet 4 | . 3 . . 1 Fabricators . | . . . . . Repair Stations . | . . . . . Recycling Units 2 | . 2 . . . Tunnel 2 | . 2 . . . Scanalyzers . | . . . . . Garrison Access . | . . . . . Data Cores Recovered . | . . . . . Used . | . . . . . Hacking Detections 5 | . 3 1 . 1 Full Trace Events . | . . . . . Feedback Events . | . . . . . Feedback Blocked . | . . . . . Robot Schematics Acquired . | . . . . . Robots Built . | . . . . . Authchips . | . . . . . Time . | . . . . . Total Robot Build Rating . | . . . . . Part Schematics Acquired . | . . . . . Parts Built . | . . . . . Authchips . | . . . . . Time . | . . . . . Total Part Build Rating . | . . . . . Parts Repaired . | . . . . . Time . | . . . . . Parts Recycled . | . . . . . Recycled Matter . | . . . . . Retrieved Matter . | . . . . . Retrieved Components 7 | . 7 . . . Parts Scanalyzed . | . . . . . Part Schematics Acquired . | . . . . . Parts Damaged . | . . . . . Bothacking | -11 -10 -10 -10 -8 ------------ Run | Yrd Mat Min Sub Mat Used RIF Installer . | . . . . . Robots Hacked . | . . . . . Non-combat . | . . . . . Combat . | . . . . . Robot Hacks Applied . | . . . . . Relay Couplers Released . | . . . . . Fabnet Peak Effective % . | . . . . . Robots Rewired . | . . . . . Allies Hacked . | . . . . . Hacks Repelled . | . . . . . Allies | -11 -10 -10 -10 -8 -------- Run | Yrd Mat Min Sub Mat Total Allies . | . . . . . Largest Group . | . . . . . Highest-Rated Group . | . . . . . Highest-Rated Ally . | . . . . . Total Orders . | . . . . . Ally Attacks . | . . . . . Total Damage . | . . . . . Kills . | . . . . . Allies Corrupted . | . . . . . Allies Melted . | . . . . . Intel | -11 -10 -10 -10 -8 ------- Run | Yrd Mat Min Sub Mat Active Infowar (turns) 2767 | 25 749 663 541 789 Optics 1330 | . . . 541 789 Terrain 2212 | 25 749 663 . 775 Robot Analysis Total . | . . . . . Derelict Logs Recovered 2 | . . 2 . . Drone Launches . | . . . . . Drone Recoveries . | . . . . . Exploration | -11 -10 -10 -10 -8 ------------- Run | Yrd Mat Min Sub Mat Turns Passed 3551 | 180 749 915 812 895 Spaces Moved 1675 | 92 417 419 469 278 Core 13 | 13 . . . . Treads 1444 | 79 417 419 469 60 Legs . | . . . . . Wheels 72 | . . . . 72 Hover 146 | . . . . 146 Flight . | . . . . . Fastest Speed 42 | 50 160 160 160 42 Average Speed 153 | 159 160 160 160 118 Slowest Speed 290 | 200 160 240 260 290 Overloaded Moves . | . . . . . Propulsion Burnouts . | . . . . . Robots Hopped . | . . . . . Potential Cave-ins . | . . . . . Cave-ins Triggered . | . . . . . Exploration Rate (%) 46 | 7 82 83 37 23 Regions Visited 4 Branch Regions 2 Pre-discovered Areas 4 | . 2 2 . . Known Exits Taken 2 | . 1 1 . . Unknown Exits Taken 2 | 1 . . 1 . Scrap Searched 5 | . . 1 4 . Spaces Dug 1 | . . . . 1 Terrain Destroyed 103 | . . . 48 55 Melee 1 | . . . . 1 Projectile . | . . . . . AOE 102 | . . . 48 54 Terrain Rammed . | . . . . . Walls Destroyed . | . . . . . Machines Disabled . | . . . . . Actions | -11 -10 -10 -10 -8 --------- Run | Yrd Mat Min Sub Mat Total 2475 | 112 456 643 507 757 Wait 569 | . . 208 . 361 Move 1671 | 91 416 418 468 278 Hop . | . . . . . Pick Up 34 | 7 4 3 9 11 Fast Attach 24 | 7 2 . 1 14 Attach 12 | . . 1 2 9 Detach 4 | . . . 1 3 Swap 22 | . 5 2 6 9 Drop 21 | . 5 1 6 9 Fire 92 | 5 22 9 11 45 Melee 21 | . . . 3 18 Ram . | . . . . . Kick . | . . . . . Crush 5 | 2 2 1 . . Escape Stasis . | . . . . . Rewire . | . . . . . Trap . | . . . . . Miscellaneous . | . . . . . Route ------- -11/Scrapyard -10/Materials (discovered 4 exits: *Mat x3 / *Min) -10/Mines (discovered 3 exits: *Mat x2 / *Sub) -10/Subcaves (discovered 2 exits: *Mat x2) -8/Materials History --------- Turn | Location | Event 2 | -11/Scrapyard | Met Revision 17 25 | -11/Scrapyard | Discovered new exit (range 15) 181 | -11/Scrapyard | Entered Materials 217 | -10/Materials | Discovered new exit (range 14) 306 | -10/Materials | Build established: Mutant 399 | -10/Materials | Discovered new exit (range 10) 455 | -10/Materials | Discovered new exit (range 15) 645 | -10/Materials | Identified exit to Mines 655 | -10/Materials | Discovered new exit (range 15) 930 | -10/Materials | Entered Mines 946 | -10/Mines | Discovered new exit (range 9) 1217 | -10/Mines | Discovered new exit (range 14) 1221 | -10/Mines | Found DCF Scrap (12 items) 1243 | -10/Mines | YI-UF0 nonchalantly dropped a Grenade Launcher on the ground 1310 | -10/Mines | Learned location of Zion (-6) 1594 | -10/Mines | Identified exit to Materials 1834 | -10/Mines | Discovered new exit (range 8) 1844 | -10/Mines | Identified exit to Subcaves 1845 | -10/Mines | Entered Subcaves 1890 | -10/Subcaves | Shifting Twisted Machinery released Spk. Treads 1904 | -10/Subcaves | Shifting Twisted Machinery released Sub. Machine Gun 2087 | -10/Subcaves | Core integrity fell below 50% 2088 | -10/Subcaves | Ambushed by Subdweller buried in earth 2142 | -10/Subcaves | Discovered new exit (range 7) 2333 | -10/Subcaves | Discovered new exit (range 10) 2504 | -10/Subcaves | Visited 4L-MR0's lab 2520 | -10/Subcaves | Found Powered Cannon 2534 | -10/Subcaves | Build established: Derelict-Mutant 2657 | -10/Subcaves | Entered Materials 2657 | -8/Materials | Evolved 4 slots: Propulsion x1, Utility x3 3280 | -8/Materials | Build established: Mutant 3507 | -8/Materials | Destroyed 7 combat bots 3510 | -8/Materials | Lost 7 parts (1p4u2w) 3552 | -8/Materials | Self-destructed Last Messages --------------- The unstable cave ceiling collapses. U-05 Engineer builds a Wall. U-05 Engineer lays Concrete. Acquired Adv. Targeting Computer. U-05 Engineer lays Concrete. Connecting with Terminal... Current location identified: Materials >>Trojan(Botnet) Trojan loaded successfully. Testing... Terminal linked with 0 systems. Awaiting botnet instructions. Acquired Airjet. KPILNM5P7|7JTQGTF#EMON1YBDDJYNT8 Acquired Signal Interpreter. Acquired Imp. Terrain Scanner. System corrupted: FCS attempts to trigger Grenade Launcher. System corrupted: Grenade Launcher misfires. Terminal disabled. Map ----- +----------------------------------------------------+ | | | | | | | | | | | | | | | | | | | | | | | | | ???????????????????????????????? | | ??????????????????????#????????? | | ???????????????????????????????? | | ???????????????????????????????? | | ????###########################? | | ????# #? | | ##### + | | # # ####" # #? #?? | | # ! #??#T ^ # =% ## ##? | | ? #??#" % # #= # | | ?# #??#^^ T # | | ?# #??# # | | # * #??# ##[%= % | | # @#??# [ # = [ # | | ?########??# +!" *% | | ???????????# ##+### = | | ???????????###### # = % | | ????????????????# # % "^ | | ????????????????# # [= ! | | ???????????????## = # ## # | | ???????????##???# #### # | | ???????????#??### #??# """ + | | ???????????#??### #??# """ # | | ??????????????########?# """ # | | ???????????????###??##?# !# | | ??????????????#??????### [ # | | ????????#??#??#???#?#??######## | | ????#???#????#????########?#?## | | ??????#?????#?#???# ####### | | ???#???#??##??##### [ | | ???#??##???##????## ! | | ???????##?#??##??## != | | ?????##?????#?##?## ####### | | ???????############# ######## | | ??????????# # # # | | ?????##??## # # + | | ???#????## + # # | | ?????##?## # # =| # | +----------------------------------------------------+ Best States ------------- Heat Dissipation 31 Energy Generation 14 Energy Capacity 160 Matter Stores 300 Matter Capacity 300 Sight Range 21 Terrain Scan Range 16 Terrain Scan Density 10 Additional Mass Support 6 Armor Coverage 150 Evasion (%) 56 Targeting Accuracy 8 Recoil Reduction 2 Item Schematics ----------------- None Robot Schematics ------------------ None Fabricated ------------ Nothing Repaired ---------- Nothing Alien Tech Used ----------------- None Achievements -------------- None Challenges ------------ None Game ------ Seed AntigravExpertWeb Manual? 0 Play Time 00:22:44 Cumulative 88.3 hours Start 2025.05.15 @ 01:33:03 End 2025.05.15 @ 01:55:48 Sessions 1 Manual Loads 0 Difficulty Rogue Special Mode None Game No. 89 Rogue 89 Adventurer 0 Explorer 0 Win Type - Total 1 Types 1/0/0/0/0/0/0/0/0/0 Lore% 47 Gallery% 50 Achievement% 45 Wizard Run 0 Options --------- Layout 1 ASCII 0 Keyboard 1 Movement Numpad Keybinds 0 Fullscreen 1 Font 32/SmallcapsGlow Map View 50x35 Zoom Use 0% Tactical HUD 0 Map Filters NONE Filters NONE Steam 1 RUN: 9d469523-fc84-4bcf-aa43-0a17512dc52e